bitfinex/quotes_SOLUSD_20260228
["timestamp","ask_amount","ask_price","bid_price","bid_amount"]
[1772295127608,0.74497076,81.059,81.027,0.37362765]
[1772295127911,0.74497076,81.059,81.001,49.38209606]
[1772295127912,0.74497076,81.039,81.009,0.37362765]
[1772295128210,6.08461057,81.03,81.009,0.37362765]
[1772295128708,43.17842558,81.059,80.99,6.28461057]
[1772295128709,0.74497076,81.019,80.99,0.2]
[1772295128890,0.74497076,81.009,80.99,0.2]
[1772295129703,0.74497076,81.007,80.99,0.2]
[1772295129909,6.08461057,81.02,80.992,0.37980832]
[1772295130098,0.74497076,81.019,80.992,0.37980832]
[1772295131399,6.08461057,81.03,80.994,0.38586092]
[1772295131600,0.74497076,81.029,80.994,0.38586092]
[1772295133296,6.08461057,81.02,80.994,0.38586092]
[1772295134012,0.74497076,80.999,80.97,12.74202599]
[1772295135208,0.74497076,80.999,80.971,0.3946931]
[1772295136015,0.74497076,80.999,80.972,12.34994813]
[1772295136403,0.84081054,80.997,80.973,0.40321179]
[1772295137508,0.84081054,81.007,80.973,0.40598646]
[1772295137803,0.84081054,81.019,80.98,16.32878804]
[1772295138002,0.84081054,81.019,80.981,0.40598646]
[1772295138217,12.34171747,81.026,80.983,0.40598646]
[1772295138403,0.84081054,81.025,80.983,0.40598646]
[1772295138604,0.84081054,81.02,80.983,0.40598646]
[1772295140116,0.84081054,81.02,80.984,12.34811814]
[1772295140309,0.84081054,81.019,80.985,0.41142735]
[1772295140822,0.84081054,81.018,80.985,0.41142735]
[1772295142301,0.84081054,81.016,80.986,12.76457239]
[1772295142500,0.84081054,81.016,80.987,0.41937064]
[1772295144223,12.34305295,81.018,80.986,43.2173462]
[1772295144224,0.84081054,81.009,80.986,12.3478132]
[1772295144417,0.84081054,81.009,80.981,12.34857559]
[1772295144724,0.84081054,81.009,80.982,0.42448872]
[1772295144919,0.84081054,81.008,80.982,0.42448872]
[1772295146411,0.84081054,81.006,80.976,0.42952296]
[1772295149229,0.84081054,81.029,80.981,0.43444389]
[1772295150140,0.84081054,81.019,80.981,0.43444389]
[1772295151233,0.84081054,81.009,80.981,0.43444389]
[1772295152134,0.84081054,81.009,80.982,12.3484231]
[1772295152630,0.84081054,81.009,80.982,12.79233202]
[1772295153534,0.84081054,81.008,80.982,12.79233202]
[1772295153723,0.84081054,81.008,80.982,12.3484231]
[1772295153918,0.84081054,81.008,80.972,12.79616096]
[1772295154822,0.84081054,81.006,80.972,12.79616096]
[1772295155020,30.85649293,81.021,80.981,0.83518729]
[1772295155216,6.09034554,81.05,81.001,0.83518729]
[1772295155533,6.09034554,81.05,81.011,0.83518729]
[1772295157115,0.84081054,81.047,81.012,12.34385029]
[1772295158430,0.84081054,81.047,81.008,12.3443202]
[1772295158637,0.84081054,81.039,81.008,13.17950749]
[1772295159161,0.84081054,81.037,81.009,0.83518729]
[1772295160438,30.84591846,81.048,81.01,12.34415504]
[1772295160439,0.84081054,81.035,81.01,12.34415504]
[1772295160934,0.84081054,81.035,81.01,13.17934233]
[1772295163034,0.84081054,81.033,81.01,0.83518729]
[1772295164724,12.34080363,81.032,81.006,12.34464809]
[1772295164921,0.8865795,81.031,81.006,12.34464809]
[1772295166037,0.8865795,81.029,81.006,0.83573875]
[1772295166631,0.8865795,81.029,81.001,12.34552659]
[1772295166841,0.87722381,81.009,80.977,0.85867486]
[1772295167049,43.1938788,81.03,80.962,0.85867486]
[1772295167050,0.87722381,80.989,80.962,0.85867486]
[1772295167237,0.87722381,80.989,80.957,12.35212057]
[1772295168244,0.87722381,80.987,80.952,13.21156848]
[1772295170542,0.87722381,80.985,80.96,16.31432488]
[1772295170742,0.87722381,80.991,80.961,0.85867486]
[1772295171630,0.87722381,80.991,80.963,0.85867486]
[1772295172444,0.87722381,80.989,80.963,0.85867486]
[1772295173535,0.87722381,80.989,80.964,13.20984328]
[1772295173731,0.87722381,80.989,80.965,0.85867486]
[1772295174259,0.87722381,80.987,80.965,0.85867486]
[1772295176132,0.87722381,80.987,80.967,0.85867486]
[1772295176834,0.87722381,81.006,80.971,0.85867486]
[1772295177847,12.34491698,81.005,80.971,0.85867486]
[1772295178026,0.87722381,81.004,80.971,0.85867486]
[1772295179345,0.87722381,81.002,80.972,13.20862299]
[1772295180054,0.87722381,81.002,80.972,0.85867486]
[1772295180350,0.87722381,80.999,80.964,13.20974115]
[1772295180646,0.87722381,80.999,80.964,0.85867486]
[1772295180834,0.87722381,80.989,80.952,0.85867486]
[1772295182066,0.87722381,80.987,80.954,0.85867486]
[1772295183337,0.87722381,81.004,80.971,0.85867486]
[1772295184150,0.87722381,81.003,80.973,0.85867486]
[1772295184732,0.87722381,81.003,80.972,12.34994813]
[1772295184733,6.09582725,81.04,80.991,0.85867486]
[1772295184930,6.09582725,81.04,80.993,0.85867486]
[1772295185136,6.09582725,81.04,80.985,0.85867486]
[1772295185137,6.09582725,81.02,80.985,0.85867486]
[1772295185452,16.32121014,81.03,80.991,0.85867486]
[1772295185751,16.32121014,81.02,80.983,0.85867486]
[1772295186466,43.19974326,81.019,80.984,0.85867486]
[1772295186758,0.87722381,81.018,80.991,0.85867486]
[1772295188056,12.34221781,81.023,80.991,0.85867486]
[1772295188444,12.34221781,81.023,80.992,12.34689845]
[1772295188445,0.87722381,81.023,80.992,12.34689845]
[1772295188652,0.87722381,81.023,80.993,0.85867486]
[1772295190542,0.87722381,81.032,80.995,0.85867486]
[1772295190852,0.87722381,81.039,81.001,0.85867486]
[1772295191153,0.87722381,81.039,80.994,43.2130775]
[1772295191154,12.33806292,81.05,81.011,0.85867486]
[1772295191355,0.87722381,81.049,81.011,0.85867486]
[1772295192161,0.87722381,81.039,81.011,0.85867486]
[1772295192539,0.87722381,81.039,81.001,0.85867486]
[1772295192741,0.87722381,81.029,81.001,0.85867486]
[1772295192963,0.87722381,81.046,81.011,0.85867486]
[1772295193264,0.87722381,81.045,81.011,0.85867486]
[1772295193762,0.87722381,81.039,81.011,0.85867486]
[1772295194557,0.87722381,81.037,81.011,0.85867486]
[1772295195745,0.87722381,81.035,81.011,0.85867486]
[1772295196136,0.87722381,81.035,81.005,12.34479677]
[1772295196343,0.87722381,81.035,81.006,0.92456319]
[1772295197461,0.91966545,81.029,81.0,0.92456319]
[1772295198566,16.32121014,81.03,80.995,0.92456319]
[1772295198567,0.91966545,81.027,80.995,0.92456319]
[1772295200865,0.91966545,81.025,80.995,0.92456319]
[1772295201967,0.91966545,81.025,80.996,12.3462887]
[1772295202170,0.91966545,81.025,80.997,0.92456319]
[1772295203465,0.91966545,81.023,80.997,0.92456319]
[1772295204565,0.91966545,81.021,80.997,0.92456319]
[1772295204950,0.91966545,81.021,80.998,12.34598385]
[1772295205269,0.91966545,81.021,80.999,0.92456319]
[1772295206557,0.91966545,81.027,81.003,0.92456319]
[1772295206766,0.91966545,81.026,81.003,0.92456319]
[1772295208575,0.91966545,81.026,80.986,0.92456319]
[1772295208756,43.19551492,81.027,80.988,0.92456319]
[1772295208757,0.91966545,81.019,80.988,0.92456319]
[1772295208956,0.91966545,81.019,80.991,0.92456319]
[1772295211174,12.34293613,81.018,80.993,0.92456319]
[1772295211865,0.91966545,81.009,80.981,0.92456319]
[1772295212068,6.09153389,81.0,80.973,0.92456319]
[1772295212260,0.91966545,80.999,80.973,0.92456319]
[1772295212469,0.91966545,80.989,80.967,0.92456319]
[1772295212774,0.91966545,80.989,80.95,6.09153389]
[1772295212775,0.91966545,80.979,80.953,0.92456319]
[1772295213155,6.09153389,81.0,80.923,30.89327702]
[1772295213156,0.91966545,80.969,80.923,30.89327702]
[1772295213455,0.91966545,80.969,80.93,6.09153389]
[1772295214054,0.91966545,80.969,80.923,30.89327702]
[1772295215071,0.91966545,80.959,80.923,30.89327702]
[1772295215384,6.09153389,80.95,80.924,0.92456319]
[1772295215558,6.09153389,80.95,80.921,12.35773161]
[1772295215559,0.91966545,80.949,80.921,12.35773161]
[1772295216070,0.91966545,80.949,80.918,0.92456319]
[1772295216278,0.91966545,80.949,80.91,0.2]
[1772295216279,0.91966545,80.939,80.91,0.2]
[1772295216455,6.09153389,80.94,80.911,0.92456319]
[1772295216456,0.91966545,80.937,80.911,0.92456319]
[1772295217080,0.91966545,80.929,80.91,0.2]
[1772295217375,0.91966545,80.919,80.89,0.92456319]
[1772295217679,6.09153389,80.91,80.882,12.36356624]
[1772295217863,43.24831949,80.928,80.88,0.2]
[1772295217864,0.91966545,80.909,80.886,0.92456319]
[1772295218263,0.91966545,80.919,80.886,0.92456319]
[1772295219260,3.69383402,80.951,80.897,0.92456319]
[1772295219261,0.91966545,80.926,80.897,0.92456319]
[1772295219477,0.91966545,80.928,80.897,0.92456319]
[1772295220361,12.35651002,80.929,80.887,0.92456319]
[1772295220362,0.91966545,80.919,80.887,0.92456319]
[1772295221178,16.36200585,80.92,80.887,0.92456319]
[1772295221179,0.91966545,80.917,80.887,0.92456319]
[1772295221477,0.91966545,80.917,80.888,12.36273319]
[1772295221970,0.91966545,80.917,80.887,0.92456319]
[1772295222280,0.91966545,80.917,80.881,0.92456319]
[1772295222480,0.91966545,80.917,80.895,29.84481889]
[1772295222677,12.35746968,80.923,80.897,0.92456319]
[1772295222862,0.91966545,80.919,80.895,29.84481889]
[1772295223389,3.69383402,80.941,80.895,29.84481889]
[1772295223390,13.27785522,80.918,80.896,0.92456319]
[1772295223976,0.91966545,80.917,80.896,0.92456319]
[1772295224789,0.95806726,80.932,80.897,0.930579]
[1772295225382,0.95806726,80.938,80.901,0.930579]
[1772295227777,0.89189197,80.936,80.903,0.96352791]
[1772295228688,12.35528868,80.937,80.903,0.96352791]
[1772295228892,0.89189197,80.936,80.903,0.96352791]
[1772295231691,0.89189197,80.934,80.905,0.96352791]
[1772295233597,0.89189197,80.932,80.907,0.96352791]
[1772295235884,0.89189197,80.932,80.909,0.96352791]
[1772295236073,13.24534908,80.949,80.911,0.96352791]
[1772295236275,0.89189197,80.948,80.911,0.96352791]
[1772295237285,0.89189197,80.946,80.913,0.96352791]
[1772295237796,12.35376233,80.947,80.907,13.32325107]
[1772295237797,0.89189197,80.939,80.907,13.32325107]
[1772295237972,0.89189197,80.939,80.908,0.96352791]
[1772295239279,0.89189197,80.937,80.91,0.96352791]
[1772295239872,12.35513603,80.938,80.895,29.84481889]
[1772295239873,0.89189197,80.929,80.897,0.96352791]
[1772295240298,0.89189197,80.936,80.901,0.96352791]
[1772295241897,0.89189197,80.934,80.903,0.96352791]
[1772295242978,0.89189197,80.932,80.905,0.96352791]
[1772295245183,0.89189197,80.932,80.907,0.96352791]
[1772295245416,0.89189197,80.93,80.907,0.96352791]
[1772295248101,61.9303798,80.99,80.895,60.74907749]
[1772295248102,0.89189197,80.962,80.921,0.96352791]
[1772295248401,0.89189197,80.962,80.931,0.96352791]
[1772295250302,12.35162609,80.961,80.933,0.96352791]
[1772295251392,0.89189197,80.961,80.934,12.35574665]
[1772295251593,0.89189197,80.961,80.935,0.96352791]
[1772295252108,43.22641998,80.969,80.941,0.96352791]
[1772295252400,12.35040571,80.969,80.941,0.96352791]
[1772295252603,13.24229768,80.969,80.941,0.96352791]
[1772295252805,0.89189197,80.968,80.941,0.96352791]
[1772295253587,0.89189197,80.966,80.941,0.96352791]
[1772295254209,0.89189197,80.975,80.943,0.96352791]
[1772295254394,0.89189197,80.995,80.961,0.96352791]
[1772295254601,0.89189197,80.989,80.955,0.96352791]
[1772295255894,0.89189197,80.987,80.955,0.96352791]
[1772295256891,0.89189197,80.987,80.953,12.35283824]
[1772295256892,0.89189197,80.987,80.957,0.94050512]
[1772295257091,0.89189197,80.987,80.961,0.94050512]
[1772295258003,0.95865041,80.985,80.961,0.94050512]
[1772295258508,12.3478132,80.986,80.963,0.94050512]
[1772295258902,12.34729593,80.99,80.963,0.94050512]
[1772295259102,13.30594634,80.99,80.963,0.94050512]
[1772295259304,0.95865041,80.989,80.963,0.94050512]
[1772295259503,0.95865041,81.027,80.981,0.94050512]
[1772295259709,0.95865041,81.058,81.011,0.94050512]
[1772295259906,12.33669302,81.059,81.011,0.94050512]
[1772295259907,0.95865041,81.049,81.011,0.94050512]
[1772295260213,12.33669302,81.059,81.011,0.94050512]
[1772295260214,0.95865041,81.047,81.012,0.94050512]
[1772295261313,0.95865041,81.019,80.98,6.10554128]
[1772295261492,0.95865041,81.019,80.981,0.94050512]
[1772295262420,0.95865041,81.017,80.983,0.94050512]
[1772295265304,0.95865041,81.015,80.985,0.94050512]
[1772295266915,6.10554128,81.01,80.985,0.94050512]
[1772295268103,0.95865041,81.009,80.985,0.94050512]
[1772295268410,44.16372638,81.009,80.985,0.94050512]
[1772295268615,0.95865041,80.999,80.972,0.94050512]
[1772295269217,0.95865041,80.999,80.973,0.94050512]
[1772295270124,6.10554128,81.01,80.975,0.94050512]
[1772295270423,7.06419169,81.02,80.981,0.94050512]
[1772295270615,0.95865041,81.019,80.981,0.94050512]
[1772295273430,0.95865041,81.017,80.983,0.94050512]
[1772295274632,6.10554128,81.02,80.98,6.10554128]
[1772295274633,0.95865041,81.015,80.985,0.94050512]
[1772295276531,12.34354556,81.014,80.974,30.87410773]
[1772295276825,12.34354556,81.014,80.98,6.10554128]
[1772295277011,12.34354556,81.014,80.981,0.94050512]
[1772295277430,12.34354556,81.014,80.975,43.22321703]
[1772295277431,0.95865041,81.051,81.0,6.10554128]
[1772295277629,0.95865041,81.029,80.99,6.10554128]
[1772295278014,0.95865041,81.029,80.958,5.36086188]
[1772295278015,0.95865041,80.999,80.94,6.10554128]
[1772295278331,0.95865041,80.979,80.943,3.69383402]
[1772295278518,0.95865041,80.979,80.92,6.10554128]
[1772295278519,0.95865041,80.979,80.951,12.3531519]
[1772295278712,0.95865041,80.986,80.951,43.23603166]
[1772295279515,0.95865041,80.986,80.952,0.76079424]
[1772295281516,0.95865041,80.986,80.961,0.7664375]
[1772295281921,0.95865041,80.979,80.949,12.35332547]
[1772295282230,0.95865041,80.979,80.949,13.11976297]
[1772295283217,0.95865041,80.977,80.95,0.76920631]
[1772295284616,1.01631343,80.975,80.95,0.76920631]
[1772295285019,1.01631343,80.959,80.936,0.73249797]
[1772295285733,1.01631343,80.959,80.93,0.72054186]
[1772295286622,0.99338547,80.995,80.951,0.69704005]
[1772295286936,0.99338547,80.995,80.938,5.36086188]
[1772295286937,0.99338547,80.995,80.961,0.69704005]
[1772295288337,0.99338547,80.995,80.963,0.68549121]
[1772295288717,0.99338547,80.993,80.963,0.68549121]
[1772295290425,0.99338547,80.991,80.963,0.68549121]
[1772295290625,0.99338547,80.991,80.964,12.35116842]
[1772295290833,0.99338547,80.991,80.965,0.65163452]
[1772295291027,0.99338547,81.009,80.981,0.65163452]
[1772295291828,0.99338547,81.022,80.99,6.10554128]
[1772295292031,6.10554128,81.01,80.973,4.33444122]
[1772295292233,0.99338547,81.009,80.973,0.6406072]
[1772295292435,0.99338547,81.007,80.975,0.62970655]
[1772295293133,0.99338547,81.007,80.963,0.62970655]
[1772295293436,0.99338547,80.999,80.963,0.62970655]
[1772295294538,0.99338547,80.997,80.964,12.35116842]
[1772295296039,0.99338547,80.997,80.964,12.94891851]
[1772295296423,0.99338547,80.995,80.964,0.59775009]
[1772295296623,0.99338547,80.995,80.96,28.68412835]
[1772295297638,0.99338547,80.993,80.96,28.68412835]
[1772295298443,0.99338547,80.993,80.961,0.57705284]
[1772295298638,0.99338547,80.989,80.952,0.56688218]
[1772295299641,0.99338547,80.987,80.96,16.33243951]
[1772295300020,0.99338547,80.987,80.958,0.55682833]
[1772295300640,0.99338547,80.985,80.959,12.35193122]
[1772295301021,0.99338547,80.979,80.953,1.47271381]
[1772295301348,0.99338547,80.979,80.943,12.3542609]
[1772295301927,0.99338547,80.979,80.938,12.35499541]
[1772295302627,0.99338547,80.979,80.939,0.52735436]
[1772295302822,0.99338547,80.977,80.94,12.88218509]
[1772295303020,0.99338547,80.977,80.941,0.52735436]
[1772295305722,0.99338547,80.975,80.943,0.49888439]
[1772295306326,0.99338547,80.969,80.943,0.49888439]
[1772295306527,16.33243951,80.95,80.917,12.35819487]
[1772295306724,0.99338547,80.949,80.917,12.35819487]
[1772295307136,0.99338547,80.929,80.891,0.94979757]
[1772295307332,0.99338547,80.919,80.891,0.94979757]
[1772295307545,0.99338547,80.919,80.881,0.94979757]
[1772295307749,0.99338547,80.907,80.882,12.36369031]
[1772295308250,0.99338547,80.907,80.883,0.94979757]
[1772295309134,0.99338547,80.907,80.882,12.36369031]
[1772295309339,0.99338547,80.907,80.882,13.31348788]
[1772295309648,0.99338547,80.907,80.883,0.94979757]
[1772295309844,0.99338547,80.914,80.891,0.94979757]
[1772295310036,0.99338547,80.914,80.884,44.22164367]
[1772295310952,0.99338547,80.914,80.886,12.3630789]
[1772295311141,12.3579706,80.92,80.89,16.36349644]
[1772295311344,16.36349644,80.94,80.901,0.94979757]
[1772295313343,0.99338547,80.937,80.903,0.94979757]
[1772295314761,0.99338547,80.929,80.889,13.31241795]
[1772295314954,0.99338547,80.929,80.89,0.94979757]
[1772295315259,16.36349644,80.93,80.892,0.94979757]
[1772295315260,0.99338547,80.927,80.892,0.94979757]
[1772295316545,0.79558231,80.925,80.893,13.15649261]
[1772295317348,0.79558231,80.936,80.901,0.79448354]
[1772295317552,12.35550208,80.936,80.901,0.79448354]
[1772295317753,0.79558231,80.935,80.901,0.79448354]
[1772295317949,6.10799369,80.91,80.881,1.47271381]
[1772295318248,0.79558231,80.909,80.88,0.2]
[1772295318447,0.79558231,80.899,80.88,0.2]
[1772295318759,0.79558231,80.897,80.88,0.2]
[1772295319056,12.36124502,80.898,80.88,0.2]
[1772295319358,0.79558231,80.889,80.865,0.79448354]
[1772295320460,6.10799369,80.91,80.865,0.79448354]
[1772295320761,0.79558231,80.909,80.871,0.79448354]
[1772295320942,13.15524545,80.909,80.871,0.79448354]
[1772295321142,0.79558231,80.908,80.871,0.79448354]
[1772295321961,0.79558231,80.889,80.862,12.36670361]
[1772295322968,0.79558231,80.887,80.86,12.56701075]
[1772295326054,0.79558231,80.879,80.86,0.2]
[1772295326257,0.79558231,80.879,80.842,0.79448354]
[1772295326465,0.79558231,80.869,80.828,0.79448354]
[1772295326671,0.79558231,80.869,80.831,0.79448354]
[1772295326869,43.27077615,80.886,80.83,0.2]
[1772295326870,0.79558231,80.859,80.83,0.2]
[1772295327070,0.79558231,80.849,80.83,0.2]
[1772295327370,0.79558231,80.849,80.817,0.79448354]
[1772295327893,3.69383402,80.88,80.819,0.79448354]
[1772295328163,0.79558231,80.878,80.83,6.10799369]
[1772295328865,0.79558231,80.878,80.84,6.10799369]
[1772295329253,0.79558231,80.878,80.825,3.69383402]
[1772295329561,0.79558231,80.878,80.841,0.79448354]
[1772295329964,0.79558231,80.869,80.834,0.79448354]
[1772295330277,0.79558231,80.868,80.835,12.37087895]
[1772295330581,0.79558231,80.886,80.851,0.79448354]
[1772295330758,0.79558231,80.903,80.88,6.10799369]
[1772295331280,6.10799369,80.92,80.877,0.79448354]
[1772295331281,0.79558231,80.912,80.877,0.79448354]
[1772295331451,0.79558231,80.947,80.901,0.79448354]
[1772295331650,0.79558231,80.947,80.911,0.79448354]
[1772295331848,0.79558231,80.939,80.91,16.36577933]
[1772295332051,0.79558231,80.939,80.911,0.79448354]
[1772295332263,0.79558231,80.939,80.912,12.35910618]
[1772295332980,0.79558231,80.937,80.905,0.79448354]
[1772295333178,0.79558231,80.937,80.906,0.79448354]
[1772295333759,0.79558231,80.937,80.916,2.14908052]
[1772295334163,0.79558231,80.935,80.916,2.14908052]
[1772295334955,0.79558231,80.935,80.916,1.55569506]
[1772295336066,0.79558231,80.935,80.898,0.79448354]
[1772295336253,0.79558231,80.933,80.899,0.79448354]
[1772295336460,0.79558231,80.933,80.901,0.79448354]
[1772295337566,0.79558231,80.937,80.91,16.36577933]
[1772295337879,0.79558231,80.937,80.909,0.79448354]
[1772295338276,61.75282311,80.968,80.902,12.36063385]
[1772295338277,0.79558231,80.947,80.911,0.79448354]
[1772295338577,0.79558231,80.955,80.921,0.79448354]
[1772295338793,16.36577933,80.97,80.931,0.79448354]
[1772295338957,0.79558231,80.985,80.951,0.79448354]
[1772295339159,0.79558231,80.993,80.961,0.79448354]
[1772295339363,0.79558231,80.991,80.961,0.79448354]
[1772295339581,0.79558231,80.989,80.961,0.79448354]
[1772295339964,0.79558231,80.989,80.962,12.35147353]
[1772295340163,0.79558231,80.969,80.934,0.79448354]
[1772295341474,12.35055824,80.968,80.936,0.79448354]
[1772295342366,0.77738762,80.967,80.936,0.79448354]
[1772295342882,12.35055824,80.968,80.936,0.79448354]
[1772295343764,12.35055824,80.968,80.938,0.79448354]
[1772295344164,0.70318825,80.967,80.921,0.72235211]
[1772295344661,16.36577933,80.97,80.931,0.72235211]
[1772295344874,0.70318825,80.969,80.931,0.72235211]
[1772295345074,16.36577933,80.97,80.931,0.72235211]
[1772295345378,0.70318825,80.977,80.931,0.72235211]
[1772295345785,16.36577933,80.97,80.931,0.72235211]
[1772295346079,13.05359396,80.969,80.933,0.72235211]
[1772295346282,0.7225864,80.968,80.933,0.72235211]
[1772295347371,12.35071078,80.967,80.934,12.35574665]
[1772295347571,12.35071078,80.967,80.935,0.71062083]
[1772295347887,0.7225864,80.966,80.935,0.71062083]
[1772295348782,16.36577933,80.96,80.935,0.71062083]
[1772295348967,0.7225864,80.966,80.935,0.71062083]
[1772295349574,0.72056378,80.964,80.935,0.71062083]
[1772295350582,0.71460703,80.949,80.92,0.71062083]
[1772295350786,0.71460703,80.957,80.915,0.71062083]
[1772295350985,0.71460703,80.943,80.915,0.71062083]
[1772295351680,0.70871871,80.939,80.908,0.71062083]
[1772295353284,12.35513603,80.938,80.909,12.35956444]
[1772295353476,12.35513603,80.938,80.91,0.71062083]
[1772295354597,28.71915121,80.95,80.911,0.71062083]
[1772295355188,29.41060763,80.95,80.911,0.71062083]
[1772295355493,0.68583401,80.939,80.913,0.71062083]
[1772295355873,16.36577933,80.93,80.904,0.71062083]
[1772295356191,0.68583401,80.929,80.891,0.71062083]
[1772295356391,16.36577933,80.92,80.891,0.71062083]
[1772295356598,16.36577933,80.92,80.892,0.71062083]
[1772295356973,92.65207292,80.948,80.884,0.71062083]
[1772295356974,16.36577933,80.91,80.884,0.71062083]
[1772295357584,0.67478216,80.908,80.871,0.71062083]
[1772295357786,0.67478216,80.908,80.872,0.71062083]
[1772295357991,0.67478216,80.927,80.891,0.71062083]
[1772295358387,16.36577933,80.92,80.891,0.71062083]
[1772295359207,0.67478216,80.927,80.891,0.71062083]
[1772295359498,12.35696809,80.926,80.893,0.71062083]
[1772295362076,0.65342998,80.929,80.895,0.71062083]
[1772295362482,0.65342998,80.929,80.887,0.71062083]
[1772295362780,0.64824433,80.926,80.889,0.71062083]
[1772295363997,0.64311825,80.924,80.891,0.71062083]
[1772295367196,12.35742619,80.923,80.893,0.71062083]
[1772295367995,12.3568154,80.927,80.893,0.71062083]
[1772295369404,12.97410423,80.934,80.895,0.71062083]
[1772295370504,0.6088469,80.933,80.897,0.71062083]
[1772295372207,0.6088469,80.933,80.896,12.36155063]
[1772295372208,0.60417333,80.931,80.899,0.71062083]
[1772295373318,0.59955344,80.929,80.899,0.71062083]
[1772295374113,0.59498662,80.927,80.899,0.71062083]
[1772295375219,0.59047225,80.909,80.88,0.71062083]
[1772295375714,0.59047225,80.909,80.882,0.71062083]
[1772295376496,12.3597172,80.908,80.883,12.36353745]
[1772295376710,12.3597172,80.908,80.884,0.66327086]
[1772295377513,12.35864796,80.915,80.884,0.66327086]
[1772295377893,12.93157533,80.915,80.884,0.66327086]
[1772295378108,0.57292737,80.914,80.884,0.66327086]
[1772295379012,6.1072915,80.91,80.884,0.66327086]
[1772295379204,0.56866637,80.909,80.884,0.66327086]
[1772295379402,0.56866637,80.909,80.878,0.66327086]
[1772295380896,0.56029064,80.907,80.878,0.66327086]
[1772295381304,0.56029064,80.907,80.88,0.66327086]
[1772295382003,0.55617479,80.913,80.88,0.66327086]
[1772295382199,0.55617479,80.918,80.88,0.66327086]
[1772295383597,0.54808436,80.916,80.882,0.66327086]
[1772295383797,0.54808436,80.909,80.882,0.66327086]
[1772295384220,0.54808436,80.899,80.874,0.66327086]
[1772295385625,12.36124502,80.898,80.874,0.66327086]
[1772295386825,30.89986181,80.907,80.874,0.66327086]
[1772295386826,0.53629388,80.905,80.874,0.66327086]
[1772295387430,30.89986181,80.907,80.874,0.66327086]
[1772295387728,12.35956444,80.909,80.876,0.66327086]
[1772295387928,0.53245365,80.908,80.876,0.66327086]
[1772295389222,0.52865753,80.906,80.878,0.66327086]
[1772295391540,0.52119561,80.904,80.878,0.66327086]
[1772295391867,0.52119561,80.904,80.879,0.66327086]
[1772295393722,12.36048106,80.903,80.881,0.66327086]
[1772295394123,12.87080211,80.903,80.881,0.66327086]
[1772295394319,0.51032105,80.902,80.881,0.66327086]
[1772295394636,0.50677915,80.889,80.855,0.66327086]
[1772295395032,0.50677915,80.879,80.859,13.56412447]
[1772295395231,0.50677915,80.879,80.859,12.90085361]
[1772295395834,12.36430178,80.878,80.859,12.90085361]
[1772295396033,6.61056943,80.87,80.846,0.66327086]
[1772295396228,0.50327793,80.869,80.846,0.66327086]
[1772295397031,43.27505624,80.878,80.83,0.66327086]
[1772295397032,0.49981692,80.859,80.83,0.66327086]
[1772295397233,0.49981692,80.849,80.822,0.66327086]
[1772295398339,12.86528543,80.848,80.822,0.66327086]
[1772295398745,0.49301371,80.847,80.822,0.66327086]
[1772295400239,0.4896706,80.869,80.824,0.66327086]
[1772295400548,0.48636589,80.879,80.841,0.66327086]
[1772295401442,0.48636589,80.879,80.841,13.03311071]
[1772295401634,0.48636589,80.879,80.842,0.66327086]
[1772295402546,0.47986991,80.877,80.842,0.66327086]
[1772295403534,0.47667777,80.875,80.842,0.66327086]
[1772295403733,0.47667777,80.869,80.842,0.66327086]
[1772295405854,12.36583073,80.868,80.842,0.66327086]
[1772295406750,12.36583073,80.868,80.844,0.57650891]
[1772295407835,12.36445466,80.877,80.851,0.57650891]
[1772295408041,0.45828031,80.876,80.851,0.57650891]
[1772295409432,12.36476043,80.875,80.851,0.57650891]
[1772295409633,12.81718623,80.875,80.851,0.57650891]
[1772295410363,0.4524258,80.874,80.851,0.57650891]
[1772295411244,0.4524258,80.874,80.841,12.36984016]
[1772295411453,0.4524258,80.874,80.842,0.57650891]
[1772295411835,12.36506621,80.873,80.842,0.57650891]
[1772295414142,0.44111487,80.873,80.842,0.57650891]
[1772295415450,0.44111487,80.873,80.833,0.57650891]
[1772295415752,0.43565242,80.849,80.821,0.57650891]
[1772295416666,12.36888976,80.848,80.821,0.57650891]
[1772295416859,12.36888976,80.848,80.823,0.57650891]
[1772295417766,43.72142891,80.848,80.823,0.57650891]
[1772295418075,0.43031473,80.839,80.811,0.57650891]
[1772295418644,0.42769178,80.837,80.811,0.57650891]
[1772295419243,6.1072915,80.83,80.811,0.57650891]
[1772295420148,6.1072915,80.82,80.8,0.2]
[1772295420454,0.59784487,80.819,80.79,0.2]
[1772295420762,0.59784487,80.809,80.79,0.2]
[1772295421060,6.1072915,80.79,80.78,0.2]
[1772295421240,0.59784487,80.791,80.78,0.2]
[1772295421440,0.59784487,80.791,80.75,6.1072915]
[1772295422060,0.59784487,80.791,80.739,3.69383402]
[1772295422061,6.1072915,80.81,80.77,6.2072915]
[1772295422242,0.59784487,80.799,80.772,0.57650891]
[1772295426148,12.37654397,80.798,80.774,0.57650891]
[1772295426345,0.59784487,80.789,80.74,7.58000531]
[1772295426549,6.1072915,80.77,80.753,0.57650891]
[1772295427263,43.3179039,80.798,80.757,0.57650891]
[1772295427454,0.59784487,80.796,80.761,0.57650891]
[1772295427656,12.37654397,80.798,80.761,0.57650891]
[1772295427859,0.59784487,80.797,80.761,0.57650891]